[Event "Titled Tuesday Blitz July 25 Early 2023"]
[White "Qiao, Cindy"]
[Black "Saim, Mohamed Ilias"]
[WhiteFideId "2620243"]
[BlackFideId "7900465"]
[WhiteElo "2373"]
[BlackElo "1960"]
[Result "1-0"]
[Round "11"]
[TimeControl "180+2"]
[Date "2023.07.25"]
[WhiteClock "0:00:17"]
[BlackClock "0:00:00"]
[Board "131"]

1. d4 {[%clk 0:03:00]}  Nf6 {[%clk 0:02:58]} 2. Bf4 {[%clk 0:03:01]}  d5 {[%clk 0:02:57]} 3. e3 {[%clk 0:03:01]}  c5 {[%clk 0:02:56]} 4. Nf3 {[%clk 0:03:01]}  Nc6 {[%clk 0:02:56]} 5. Nbd2 {[%clk 0:03:02]}  Qb6 {[%clk 0:02:53]} 6. dxc5 {[%clk 0:03:02]}  Qxb2 {[%clk 0:02:49]} 7. Rb1 {[%clk 0:02:59]}  Qc3 {[%clk 0:02:42]} 8. Bb5 {[%clk 0:02:55]}  Qxc5 {[%clk 0:02:41]} 9. O-O {[%clk 0:02:21]}  Bf5 {[%clk 0:02:37]} 10. Nd4 {[%clk 0:02:15]}  Bd7 {[%clk 0:02:29]} 11. N2b3 {[%clk 0:02:01]}  Qb6 {[%clk 0:02:17]} 12. c4 {[%clk 0:01:57]}  e5 {[%clk 0:02:08]} 13. Bxc6 {[%clk 0:01:48]}  exf4 {[%clk 0:01:51]} 14. Bxd7+ {[%clk 0:01:46]}  Nxd7 {[%clk 0:01:51]} 15. exf4 {[%clk 0:01:42]}  Be7 {[%clk 0:01:36]} 16. Nf5 {[%clk 0:01:28]}  Qf6 {[%clk 0:01:29]} 17. Nxe7 {[%clk 0:01:27]}  Kxe7 {[%clk 0:01:25]} 18. Qxd5 {[%clk 0:01:15]}  Rhd8 {[%clk 0:01:18]} 19. Qxb7 {[%clk 0:01:01]}  Kf8 {[%clk 0:01:13]} 20. Qf3 {[%clk 0:00:55]}  Kg8 {[%clk 0:01:06]} 21. Rfd1 {[%clk 0:00:53]}  Rac8 {[%clk 0:00:59]} 22. Rbc1 {[%clk 0:00:51]}  Nc5 {[%clk 0:00:58]} 23. h3 {[%clk 0:00:48]}  Ne6 {[%clk 0:00:42]} 24. g3 {[%clk 0:00:42]}  Rxd1+ {[%clk 0:00:40]} 25. Qxd1 {[%clk 0:00:43]}  Rd8 {[%clk 0:00:41]} 26. Qf3 {[%clk 0:00:42]}  Qb2 {[%clk 0:00:38]} 27. Qc3 {[%clk 0:00:38]}  Qxa2 {[%clk 0:00:37]} 28. c5 {[%clk 0:00:35]}  Rc8 {[%clk 0:00:27]} 29. c6 {[%clk 0:00:34]}  a5 {[%clk 0:00:19]} 30. Nxa5 {[%clk 0:00:33]}  Qe2 {[%clk 0:00:07]} 31. Nb7 {[%clk 0:00:28]}  h5 {[%clk 0:00:02]} 32. Nd6 {[%clk 0:00:24]}  Rc7 {[%clk 0:00:03]} 33. Re1 {[%clk 0:00:19]}  Qa6 {[%clk 0:00:01]} 34. Nf5 {[%clk 0:00:18]}  Rxc6 {[%clk 0:00:00]} 35. Qb2 {[%clk 0:00:17]} 1-0


[Site "https://www.chess.com"]

[Event "Titled Tuesday Blitz July 25 Early 2023"]
[White "LangesNasenhaar"]
[Black "Ncatt"]
[WhiteElo "2461"]
[BlackElo "2335"]
[Result "1-0"]
[Round "11"]
[TimeControl "180+2"]
[Date "2023.07.25"]
[WhiteClock "0:00:17"]
[BlackClock "0:00:23"]
[Board "133"]

1. d4 {[%clk 0:03:00]}  Nf6 {[%clk 0:01:50]} 2. Nc3 {[%clk 0:02:02]}  d5 {[%clk 0:01:49]} 3. Bf4 {[%clk 0:02:02]}  e6 {[%clk 0:01:47]} 4. Nb5 {[%clk 0:02:01]}  Bb4+ {[%clk 0:01:47]} 5. c3 {[%clk 0:02:00]}  Ba5 {[%clk 0:01:47]} 6. a4 {[%clk 0:01:58]}  a6 {[%clk 0:01:46]} 7. b4 {[%clk 0:01:57]}  axb5 {[%clk 0:01:45]} 8. axb5 {[%clk 0:01:55]}  c6 {[%clk 0:01:39]} 9. Bxb8 {[%clk 0:01:40]}  Bxb4 {[%clk 0:01:34]} 10. cxb4 {[%clk 0:01:40]}  Rxb8 {[%clk 0:01:32]} 11. e3 {[%clk 0:01:40]}  Qe7 {[%clk 0:01:29]} 12. Qb3 {[%clk 0:01:38]}  O-O {[%clk 0:01:27]} 13. Nf3 {[%clk 0:01:38]}  Bd7 {[%clk 0:01:27]} 14. Ne5 {[%clk 0:01:30]}  cxb5 {[%clk 0:01:26]} 15. Nxd7 {[%clk 0:01:23]}  Qxd7 {[%clk 0:01:26]} 16. Bd3 {[%clk 0:01:23]}  Ne4 {[%clk 0:01:25]} 17. Bxe4 {[%clk 0:01:11]}  dxe4 {[%clk 0:01:25]} 18. O-O {[%clk 0:01:12]}  Rfc8 {[%clk 0:01:23]} 19. Rfc1 {[%clk 0:01:12]}  g6 {[%clk 0:01:17]} 20. h3 {[%clk 0:01:11]}  Kg7 {[%clk 0:01:16]} 21. Rc5 {[%clk 0:01:01]}  b6 {[%clk 0:01:15]} 22. Rc2 {[%clk 0:01:01]}  Rc6 {[%clk 0:01:10]} 23. Rxc6 {[%clk 0:00:51]}  Qxc6 {[%clk 0:01:10]} 24. Ra7 {[%clk 0:00:51]}  Rc8 {[%clk 0:01:09]} 25. Kh2 {[%clk 0:00:49]}  Qc4 {[%clk 0:01:08]} 26. Qb1 {[%clk 0:00:49]}  Qc2 {[%clk 0:01:02]} 27. Qf1 {[%clk 0:00:44]}  Qd3 {[%clk 0:00:58]} 28. Qe1 {[%clk 0:00:33]}  Rc2 {[%clk 0:00:57]} 29. Rb7 {[%clk 0:00:30]}  Re2 {[%clk 0:00:54]} 30. Qf1 {[%clk 0:00:30]}  Qd2 {[%clk 0:00:54]} 31. Kg3 {[%clk 0:00:28]}  h5 {[%clk 0:00:53]} 32. h4 {[%clk 0:00:28]}  Re1 {[%clk 0:00:47]} 33. Qxb5 {[%clk 0:00:25]}  Rxe3+ {[%clk 0:00:30]} 34. fxe3 {[%clk 0:00:22]}  Qxe3+ {[%clk 0:00:31]} 35. Kh2 {[%clk 0:00:22]}  Qf4+ {[%clk 0:00:31]} 36. Kg1 {[%clk 0:00:22]}  Qc1+ {[%clk 0:00:29]} 37. Qf1 {[%clk 0:00:20]}  Qe3+ {[%clk 0:00:28]} 38. Qf2 {[%clk 0:00:20]}  Qc1+ {[%clk 0:00:28]} 39. Kh2 {[%clk 0:00:20]}  Kh6 {[%clk 0:00:23]} 40. Qxf7 {[%clk 0:00:17]} 1-0


[Site "https://www.chess.com"]

[Event "Titled Tuesday Blitz July 25 Early 2023"]
[White "Araujo Filho, Luiz Antonio Coel"]
[Black "Herman, Daniel"]
[WhiteFideId "2130661"]
[BlackFideId "30935008"]
[WhiteElo "2283"]
[BlackElo "2402"]
[Result "1-0"]
[Round "11"]
[TimeControl "180+2"]
[Date "2023.07.25"]
[WhiteClock "0:00:07"]
[BlackClock "0:00:00"]
[Board "136"]

1. d4 {[%clk 0:03:00]}  Nf6 {[%clk 0:02:56]} 2. Nf3 {[%clk 0:03:01]}  g6 {[%clk 0:02:56]} 3. c4 {[%clk 0:03:01]}  Bg7 {[%clk 0:02:56]} 4. Nc3 {[%clk 0:03:01]}  d5 {[%clk 0:02:57]} 5. cxd5 {[%clk 0:03:01]}  Nxd5 {[%clk 0:02:57]} 6. e4 {[%clk 0:03:02]}  Nxc3 {[%clk 0:02:58]} 7. bxc3 {[%clk 0:03:03]}  O-O {[%clk 0:02:58]} 8. Be2 {[%clk 0:03:03]}  c5 {[%clk 0:02:58]} 9. O-O {[%clk 0:02:59]}  Nc6 {[%clk 0:02:52]} 10. Be3 {[%clk 0:02:59]}  cxd4 {[%clk 0:02:46]} 11. cxd4 {[%clk 0:02:59]}  Bg4 {[%clk 0:02:46]} 12. e5 {[%clk 0:02:59]}  Nb4 {[%clk 0:02:22]} 13. Qb3 {[%clk 0:02:47]}  Nd5 {[%clk 0:02:15]} 14. Rab1 {[%clk 0:02:26]}  b6 {[%clk 0:01:36]} 15. h3 {[%clk 0:02:15]}  Bf5 {[%clk 0:01:35]} 16. Rbc1 {[%clk 0:02:06]}  Be6 {[%clk 0:01:12]} 17. Ng5 {[%clk 0:01:57]}  Bc8 {[%clk 0:01:03]} 18. Bf3 {[%clk 0:01:41]}  Bb7 {[%clk 0:01:02]} 19. e6 {[%clk 0:01:23]}  f5 {[%clk 0:00:57]} 20. Nf7 {[%clk 0:01:20]}  Rxf7 {[%clk 0:00:41]} 21. exf7+ {[%clk 0:01:21]}  Kxf7 {[%clk 0:00:42]} 22. Rfe1 {[%clk 0:00:40]}  e6 {[%clk 0:00:37]} 23. Qc2 {[%clk 0:00:32]}  Rc8 {[%clk 0:00:26]} 24. Qb2 {[%clk 0:00:31]}  Rxc1 {[%clk 0:00:16]} 25. Bxc1 {[%clk 0:00:18]}  Qc7 {[%clk 0:00:12]} 26. Bd2 {[%clk 0:00:16]}  Qc4 {[%clk 0:00:10]} 27. Rc1 {[%clk 0:00:12]}  Qxd4 {[%clk 0:00:08]} 28. Qxd4 {[%clk 0:00:12]}  Bxd4 {[%clk 0:00:09]} 29. Bxd5 {[%clk 0:00:13]}  Bxd5 {[%clk 0:00:09]} 30. Rc7+ {[%clk 0:00:13]}  Kf6 {[%clk 0:00:08]} 31. Rxa7 {[%clk 0:00:13]}  g5 {[%clk 0:00:04]} 32. Rxh7 {[%clk 0:00:08]}  Bxa2 {[%clk 0:00:03]} 33. Rh6+ {[%clk 0:00:08]}  Kg7 {[%clk 0:00:03]} 34. Bxg5 {[%clk 0:00:08]}  b5 {[%clk 0:00:02]} 35. Rh4 {[%clk 0:00:08]}  e5 {[%clk 0:00:01]} 36. Bd2 {[%clk 0:00:08]}  Bc4 {[%clk 0:00:00]} 37. g4 {[%clk 0:00:07]} 1-0


[Site "https://www.chess.com"]

[Event "Titled Tuesday Blitz July 25 Early 2023"]
[White "campochess"]
[Black "Wernberg, Hugo"]
[BlackFideId "1737511"]
[WhiteElo "2156"]
[BlackElo "2336"]
[Result "0-1"]
[Round "11"]
[TimeControl "180+2"]
[Date "2023.07.25"]
[WhiteClock "0:00:08"]
[BlackClock "0:00:04"]
[Board "146"]

1. e4 {[%clk 0:02:59]}  e5 {[%clk 0:02:58]} 2. Bc4 {[%clk 0:02:58]}  Nc6 {[%clk 0:02:54]} 3. c3 {[%clk 0:02:58]}  Nf6 {[%clk 0:02:51]} 4. d3 {[%clk 0:02:56]}  Bc5 {[%clk 0:02:47]} 5. Nf3 {[%clk 0:02:55]}  O-O {[%clk 0:02:44]} 6. O-O {[%clk 0:02:54]}  d5 {[%clk 0:02:37]} 7. exd5 {[%clk 0:02:52]}  Nxd5 {[%clk 0:02:38]} 8. h3 {[%clk 0:02:52]}  Nb6 {[%clk 0:02:36]} 9. Bb5 {[%clk 0:02:49]}  Bd6 {[%clk 0:02:36]} 10. Re1 {[%clk 0:02:40]}  Re8 {[%clk 0:02:22]} 11. Nbd2 {[%clk 0:02:39]}  Bd7 {[%clk 0:02:13]} 12. Ne4 {[%clk 0:02:39]}  a6 {[%clk 0:02:02]} 13. Nxd6 {[%clk 0:02:34]}  cxd6 {[%clk 0:02:01]} 14. Ba4 {[%clk 0:02:29]}  Nxa4 {[%clk 0:01:49]} 15. Qxa4 {[%clk 0:02:29]}  d5 {[%clk 0:01:14]} 16. Qd1 {[%clk 0:02:28]}  e4 {[%clk 0:01:07]} 17. dxe4 {[%clk 0:02:25]}  dxe4 {[%clk 0:01:08]} 18. Ng5 {[%clk 0:02:22]}  Bf5 {[%clk 0:00:51]} 19. Qb3 {[%clk 0:02:19]}  Qf6 {[%clk 0:00:39]} 20. f3 {[%clk 0:01:39]}  exf3 {[%clk 0:00:30]} 21. Nxf3 {[%clk 0:01:36]}  Bxh3 {[%clk 0:00:11]} 22. Bg5 {[%clk 0:01:31]}  Qf5 {[%clk 0:00:12]} 23. Qxb7 {[%clk 0:01:23]}  Qg4 {[%clk 0:00:11]} 24. Nh4 {[%clk 0:01:10]}  Qxg5 {[%clk 0:00:11]} 25. Qxc6 {[%clk 0:01:06]}  Rxe1+ {[%clk 0:00:11]} 26. Rxe1 {[%clk 0:01:04]}  Rf8 {[%clk 0:00:12]} 27. Kh2 {[%clk 0:00:59]}  Qxh4 {[%clk 0:00:12]} 28. Qe4 {[%clk 0:00:58]}  Qxe4 {[%clk 0:00:11]} 29. Rxe4 {[%clk 0:00:57]}  Be6 {[%clk 0:00:12]} 30. b3 {[%clk 0:00:56]}  Rc8 {[%clk 0:00:12]} 31. c4 {[%clk 0:00:55]}  Kf8 {[%clk 0:00:13]} 32. Rd4 {[%clk 0:00:54]}  Ke7 {[%clk 0:00:13]} 33. Kg3 {[%clk 0:00:53]}  Rd8 {[%clk 0:00:13]} 34. Rh4 {[%clk 0:00:52]}  Rd3+ {[%clk 0:00:12]} 35. Kf4 {[%clk 0:00:50]}  Rd2 {[%clk 0:00:13]} 36. g4 {[%clk 0:00:49]}  Rxa2 {[%clk 0:00:12]} 37. Rxh7 {[%clk 0:00:49]}  Rb2 {[%clk 0:00:11]} 38. Rxg7 {[%clk 0:00:48]}  Rxb3 {[%clk 0:00:12]} 39. Ke5 {[%clk 0:00:47]}  Rg3 {[%clk 0:00:07]} 40. g5 {[%clk 0:00:46]}  Rc3 {[%clk 0:00:04]} 41. g6 {[%clk 0:00:43]}  Rxc4 {[%clk 0:00:04]} 42. gxf7 {[%clk 0:00:40]}  Bxf7 {[%clk 0:00:05]} 43. Rg1 {[%clk 0:00:37]}  a5 {[%clk 0:00:05]} 44. Ra1 {[%clk 0:00:36]}  a4 {[%clk 0:00:06]} 45. Ra3 {[%clk 0:00:36]}  Rb4 {[%clk 0:00:06]} 46. Rc3 {[%clk 0:00:35]}  Bb3 {[%clk 0:00:06]} 47. Rc7+ {[%clk 0:00:35]}  Kd8 {[%clk 0:00:06]} 48. Ra7 {[%clk 0:00:34]}  Kc8 {[%clk 0:00:06]} 49. Kd6 {[%clk 0:00:33]}  Kb8 {[%clk 0:00:06]} 50. Ra5 {[%clk 0:00:33]}  Rb7 {[%clk 0:00:05]} 51. Kc5 {[%clk 0:00:33]}  Ra7 {[%clk 0:00:04]} 52. Rb5+ {[%clk 0:00:33]}  Kc7 {[%clk 0:00:03]} 53. Kb4 {[%clk 0:00:32]}  a3 {[%clk 0:00:03]} 54. Rc5+ {[%clk 0:00:27]}  Kd6 {[%clk 0:00:03]} 55. Rc1 {[%clk 0:00:27]}  a2 {[%clk 0:00:03]} 56. Ra1 {[%clk 0:00:27]}  Be6 {[%clk 0:00:03]} 57. Kc3 {[%clk 0:00:26]}  Rb7 {[%clk 0:00:04]} 58. Rd1+ {[%clk 0:00:25]}  Bd5 {[%clk 0:00:04]} 59. Rg1 {[%clk 0:00:18]}  Rb1 {[%clk 0:00:03]} 60. Rg6+ {[%clk 0:00:18]}  Be6 {[%clk 0:00:04]} 61. Rg8 {[%clk 0:00:08]}  a1=Q+ {[%clk 0:00:04]} 0-1


[Site "https://www.chess.com"]

[Event "Titled Tuesday Blitz July 25 Early 2023"]
[White "Hrescak, Ivana"]
[Black "Fajdetic, Hrvoje"]
[WhiteFideId "14613441"]
[BlackFideId "14501945"]
[WhiteElo "2139"]
[BlackElo "2328"]
[Result "1-0"]
[Round "11"]
[TimeControl "180+2"]
[Date "2023.07.25"]
[WhiteClock "0:00:08"]
[BlackClock "0:00:00"]
[Board "147"]

1. e4 {[%clk 0:03:00]}  e6 {[%clk 0:02:43]} 2. d4 {[%clk 0:03:00]}  d5 {[%clk 0:02:43]} 3. Nc3 {[%clk 0:03:01]}  dxe4 {[%clk 0:02:42]} 4. Nxe4 {[%clk 0:03:01]}  Nd7 {[%clk 0:02:41]} 5. Nf3 {[%clk 0:03:01]}  Ngf6 {[%clk 0:02:41]} 6. Ng3 {[%clk 0:02:58]}  Bd6 {[%clk 0:02:39]} 7. Bd3 {[%clk 0:02:58]}  c5 {[%clk 0:02:38]} 8. O-O {[%clk 0:02:56]}  Qc7 {[%clk 0:02:33]} 9. c3 {[%clk 0:02:55]}  a6 {[%clk 0:02:27]} 10. Bg5 {[%clk 0:02:54]}  b6 {[%clk 0:02:24]} 11. Re1 {[%clk 0:02:51]}  Bb7 {[%clk 0:02:23]} 12. Ne4 {[%clk 0:02:42]}  Bf4 {[%clk 0:02:19]} 13. Bxf6 {[%clk 0:02:33]}  gxf6 {[%clk 0:02:14]} 14. dxc5 {[%clk 0:02:28]}  bxc5 {[%clk 0:02:06]} 15. g3 {[%clk 0:02:08]}  Rg8 {[%clk 0:01:50]} 16. Kf1 {[%clk 0:02:01]}  Be5 {[%clk 0:01:21]} 17. Bc4 {[%clk 0:01:51]}  O-O-O {[%clk 0:01:15]} 18. Qe2 {[%clk 0:01:50]}  Qc6 {[%clk 0:01:11]} 19. Rad1 {[%clk 0:01:33]}  Bc7 {[%clk 0:00:57]} 20. Qe3 {[%clk 0:01:24]}  f5 {[%clk 0:00:51]} 21. Neg5 {[%clk 0:00:50]}  Rxg5 {[%clk 0:00:36]} 22. Nxg5 {[%clk 0:00:48]}  Qg2+ {[%clk 0:00:36]} 23. Ke2 {[%clk 0:00:47]}  f4 {[%clk 0:00:30]} 24. Qd3 {[%clk 0:00:10]}  fxg3 {[%clk 0:00:28]} 25. hxg3 {[%clk 0:00:08]}  Bxg3 {[%clk 0:00:28]} 26. Qxg3 {[%clk 0:00:07]}  Qxg3 {[%clk 0:00:21]} 27. fxg3 {[%clk 0:00:07]}  Ne5 {[%clk 0:00:21]} 28. Rxd8+ {[%clk 0:00:06]}  Kxd8 {[%clk 0:00:22]} 29. Bd3 {[%clk 0:00:06]}  Ke7 {[%clk 0:00:20]} 30. Be4 {[%clk 0:00:06]}  Bc8 {[%clk 0:00:19]} 31. Nf3 {[%clk 0:00:07]}  Nc4 {[%clk 0:00:18]} 32. b3 {[%clk 0:00:06]}  Nd6 {[%clk 0:00:18]} 33. Bxh7 {[%clk 0:00:05]}  a5 {[%clk 0:00:16]} 34. Bd3 {[%clk 0:00:05]}  Bb7 {[%clk 0:00:15]} 35. Ne5 {[%clk 0:00:05]}  f6 {[%clk 0:00:14]} 36. Nc4 {[%clk 0:00:05]}  Nc8 {[%clk 0:00:09]} 37. Nxa5 {[%clk 0:00:05]}  Ba8 {[%clk 0:00:09]} 38. Nc4 {[%clk 0:00:04]}  Kf7 {[%clk 0:00:08]} 39. Kd2 {[%clk 0:00:05]}  Ne7 {[%clk 0:00:09]} 40. Be4 {[%clk 0:00:05]}  Nd5 {[%clk 0:00:08]} 41. Bxd5 {[%clk 0:00:05]}  exd5 {[%clk 0:00:08]} 42. Ne3 {[%clk 0:00:05]}  Bc6 {[%clk 0:00:08]} 43. a4 {[%clk 0:00:05]}  Kg6 {[%clk 0:00:07]} 44. a5 {[%clk 0:00:05]}  Kg5 {[%clk 0:00:07]} 45. a6 {[%clk 0:00:06]}  d4 {[%clk 0:00:07]} 46. cxd4 {[%clk 0:00:06]}  cxd4 {[%clk 0:00:08]} 47. Nc4 {[%clk 0:00:07]}  f5 {[%clk 0:00:07]} 48. a7 {[%clk 0:00:07]}  Kg4 {[%clk 0:00:06]} 49. Re6 {[%clk 0:00:07]}  Bg2 {[%clk 0:00:06]} 50. Rg6+ {[%clk 0:00:07]}  Kh3 {[%clk 0:00:05]} 51. Rg8 {[%clk 0:00:07]}  Kh2 {[%clk 0:00:05]} 52. Ne5 {[%clk 0:00:07]}  Bd5 {[%clk 0:00:03]} 53. Nd3 {[%clk 0:00:07]}  Be4 {[%clk 0:00:02]} 54. Nf4 {[%clk 0:00:07]}  Kg1 {[%clk 0:00:01]} 55. b4 {[%clk 0:00:07]}  Kf2 {[%clk 0:00:00]} 56. b5 {[%clk 0:00:08]} 1-0


[Site "https://www.chess.com"]

[Event "Titled Tuesday Blitz July 25 Early 2023"]
[White "Goughfather"]
[Black "Vifleemskaia, Svetlana"]
[BlackFideId "4129490"]
[WhiteElo "2066"]
[BlackElo "2317"]
[Result "0-1"]
[Round "11"]
[TimeControl "180+2"]
[Date "2023.07.25"]
[WhiteClock "0:00:00"]
[BlackClock "0:00:07"]
[Board "148"]

1. d4 {[%clk 0:02:56]}  Nf6 {[%clk 0:02:59]} 2. Nc3 {[%clk 0:02:56]}  d5 {[%clk 0:02:58]} 3. Bf4 {[%clk 0:02:55]}  a6 {[%clk 0:02:57]} 4. e3 {[%clk 0:02:54]}  Bf5 {[%clk 0:02:41]} 5. Nf3 {[%clk 0:02:50]}  e6 {[%clk 0:02:41]} 6. a3 {[%clk 0:02:48]}  h6 {[%clk 0:02:42]} 7. Ne5 {[%clk 0:02:47]}  c5 {[%clk 0:02:41]} 8. g4 {[%clk 0:02:44]}  Bh7 {[%clk 0:02:38]} 9. Bd3 {[%clk 0:02:34]}  Bxd3 {[%clk 0:02:36]} 10. Qxd3 {[%clk 0:02:34]}  Nc6 {[%clk 0:02:37]} 11. dxc5 {[%clk 0:02:16]}  Bxc5 {[%clk 0:02:36]} 12. h3 {[%clk 0:01:34]}  Nd7 {[%clk 0:02:17]} 13. Nxd7 {[%clk 0:00:49]}  Qxd7 {[%clk 0:02:16]} 14. O-O-O {[%clk 0:00:50]}  O-O-O {[%clk 0:02:01]} 15. e4 {[%clk 0:00:33]}  d4 {[%clk 0:01:56]} 16. Ne2 {[%clk 0:00:28]}  e5 {[%clk 0:01:55]} 17. Bg3 {[%clk 0:00:28]}  f6 {[%clk 0:01:54]} 18. f4 {[%clk 0:00:27]}  Kb8 {[%clk 0:01:53]} 19. Nc3 {[%clk 0:00:25]}  Qe6 {[%clk 0:01:20]} 20. Nd5 {[%clk 0:00:25]}  Rxd5 {[%clk 0:00:46]} 21. exd5 {[%clk 0:00:12]}  Qxd5 {[%clk 0:00:47]} 22. fxe5 {[%clk 0:00:11]}  fxe5 {[%clk 0:00:47]} 23. Qf5 {[%clk 0:00:11]}  Bd6 {[%clk 0:00:41]} 24. Rhe1 {[%clk 0:00:10]}  Rc8 {[%clk 0:00:32]} 25. Qe4 {[%clk 0:00:09]}  Qa2 {[%clk 0:00:31]} 26. Kd2 {[%clk 0:00:08]}  Qxb2 {[%clk 0:00:30]} 27. Qd3 {[%clk 0:00:08]}  Bxa3 {[%clk 0:00:28]} 28. Ke2 {[%clk 0:00:08]}  Bd6 {[%clk 0:00:23]} 29. Rb1 {[%clk 0:00:07]}  Qa2 {[%clk 0:00:18]} 30. Qb3 {[%clk 0:00:06]}  Qxb3 {[%clk 0:00:17]} 31. Rxb3 {[%clk 0:00:07]}  Kc7 {[%clk 0:00:16]} 32. Reb1 {[%clk 0:00:06]}  b5 {[%clk 0:00:16]} 33. Kd3 {[%clk 0:00:06]}  Ra8 {[%clk 0:00:12]} 34. Ke4 {[%clk 0:00:06]}  Na5 {[%clk 0:00:11]} 35. R3b2 {[%clk 0:00:04]}  Nc4 {[%clk 0:00:12]} 36. Ra2 {[%clk 0:00:05]}  Kc6 {[%clk 0:00:12]} 37. Rf1 {[%clk 0:00:04]}  Nd2+ {[%clk 0:00:11]} 38. Kf5 {[%clk 0:00:04]}  Nxf1 {[%clk 0:00:12]} 39. c3 {[%clk 0:00:04]}  Ne3+ {[%clk 0:00:12]} 40. Ke4 {[%clk 0:00:03]}  Bc5 {[%clk 0:00:10]} 41. Bxe5 {[%clk 0:00:02]}  Nc4 {[%clk 0:00:09]} 42. cxd4 {[%clk 0:00:02]}  Nxe5 {[%clk 0:00:08]} 43. dxe5 {[%clk 0:00:02]}  a5 {[%clk 0:00:07]} 44. Kf5 {[%clk 0:00:00]}  b4 {[%clk 0:00:07]} 0-1


[Site "https://www.chess.com"]

[Event "Titled Tuesday Blitz July 25 Early 2023"]
[White "Viskelis, Darius"]
[Black "Larina, Maria"]
[WhiteFideId "12800830"]
[BlackFideId "24113182"]
[WhiteElo "2310"]
[BlackElo "2127"]
[Result "1-0"]
[Round "11"]
[TimeControl "180+2"]
[Date "2023.07.25"]
[WhiteClock "0:02:53"]
[BlackClock "0:02:20"]
[Board "149"]

1. e4 {[%clk 0:02:59]}  c6 {[%clk 0:02:59]} 2. d4 {[%clk 0:02:59]}  d5 {[%clk 0:02:59]} 3. exd5 {[%clk 0:03:00]}  cxd5 {[%clk 0:02:59]} 4. c4 {[%clk 0:03:01]}  Nf6 {[%clk 0:02:58]} 5. Nc3 {[%clk 0:03:02]}  e6 {[%clk 0:02:58]} 6. cxd5 {[%clk 0:03:01]}  Nxd5 {[%clk 0:02:58]} 7. Nf3 {[%clk 0:03:01]}  Bb4 {[%clk 0:02:54]} 8. Bd2 {[%clk 0:03:00]}  Bd7 {[%clk 0:02:51]} 9. Nxd5 {[%clk 0:02:57]}  Bxd2+ {[%clk 0:02:51]} 10. Qxd2 {[%clk 0:02:57]}  exd5 {[%clk 0:02:52]} 11. Bd3 {[%clk 0:02:57]}  O-O {[%clk 0:02:52]} 12. O-O {[%clk 0:02:56]}  Nc6 {[%clk 0:02:45]} 13. Ne5 {[%clk 0:02:56]}  Nxe5 {[%clk 0:02:36]} 14. dxe5 {[%clk 0:02:56]}  Re8 {[%clk 0:02:29]} 15. f4 {[%clk 0:02:55]}  Qb6+ {[%clk 0:02:29]} 16. Kh1 {[%clk 0:02:54]}  Qd4 {[%clk 0:02:20]} 17. Bxh7+ {[%clk 0:02:53]} 1-0


[Site "https://www.chess.com"]

[Event "Titled Tuesday Blitz July 25 Early 2023"]
[White "KSho99"]
[Black "ivana_999"]
[WhiteElo "2204"]
[BlackElo "2063"]
[Result "1-0"]
[Round "11"]
[TimeControl "180+2"]
[Date "2023.07.25"]
[WhiteClock "0:00:23"]
[BlackClock "0:00:00"]
[Board "152"]

1. Nf3 {[%clk 0:03:00]}  d5 {[%clk 0:02:59]} 2. e3 {[%clk 0:03:01]}  c5 {[%clk 0:02:59]} 3. b3 {[%clk 0:03:00]}  Nc6 {[%clk 0:02:59]} 4. Bb2 {[%clk 0:02:58]}  Nf6 {[%clk 0:03:00]} 5. Bb5 {[%clk 0:02:58]}  Bg4 {[%clk 0:02:59]} 6. h3 {[%clk 0:02:51]}  Bh5 {[%clk 0:02:59]} 7. g4 {[%clk 0:02:51]}  Bg6 {[%clk 0:02:59]} 8. Ne5 {[%clk 0:02:51]}  Qc7 {[%clk 0:02:53]} 9. d3 {[%clk 0:02:39]}  a6 {[%clk 0:02:51]} 10. Bxc6+ {[%clk 0:02:38]}  bxc6 {[%clk 0:02:52]} 11. f4 {[%clk 0:02:21]}  e6 {[%clk 0:02:43]} 12. h4 {[%clk 0:02:16]}  h5 {[%clk 0:01:51]} 13. g5 {[%clk 0:02:09]}  Ng4 {[%clk 0:01:36]} 14. Nxg4 {[%clk 0:01:52]}  hxg4 {[%clk 0:01:35]} 15. Qxg4 {[%clk 0:01:52]}  Bh5 {[%clk 0:01:30]} 16. Qg3 {[%clk 0:01:43]}  Rg8 {[%clk 0:01:14]} 17. Nd2 {[%clk 0:01:37]}  g6 {[%clk 0:01:11]} 18. Nf3 {[%clk 0:01:22]}  Bxf3 {[%clk 0:00:58]} 19. Qxf3 {[%clk 0:01:22]}  Bg7 {[%clk 0:00:58]} 20. Bxg7 {[%clk 0:01:12]}  Rxg7 {[%clk 0:00:58]} 21. O-O-O {[%clk 0:01:03]}  c4 {[%clk 0:00:40]} 22. dxc4 {[%clk 0:01:00]}  Qa5 {[%clk 0:00:38]} 23. Kb2 {[%clk 0:00:51]}  Rb8 {[%clk 0:00:20]} 24. cxd5 {[%clk 0:00:47]}  cxd5 {[%clk 0:00:19]} 25. e4 {[%clk 0:00:39]}  Qc5 {[%clk 0:00:02]} 26. exd5 {[%clk 0:00:31]}  a5 {[%clk 0:00:00]} 27. dxe6 {[%clk 0:00:23]} 1-0


[Site "https://www.chess.com"]

[Event "Titled Tuesday Blitz July 25 Early 2023"]
[White "Gyulamiryan-koryun"]
[Black "SoyuzTM4"]
[WhiteElo "2061"]
[BlackElo "2181"]
[Result "0-1"]
[Round "11"]
[TimeControl "180+2"]
[Date "2023.07.25"]
[WhiteClock "0:00:16"]
[BlackClock "0:00:39"]
[Board "153"]

1. d4 {[%clk 0:02:59]}  Nf6 {[%clk 0:02:59]} 2. c4 {[%clk 0:02:59]}  g6 {[%clk 0:02:58]} 3. Nf3 {[%clk 0:02:59]}  Bg7 {[%clk 0:02:56]} 4. g3 {[%clk 0:02:58]}  c5 {[%clk 0:02:55]} 5. Bg2 {[%clk 0:02:57]}  O-O {[%clk 0:02:50]} 6. O-O {[%clk 0:02:57]}  cxd4 {[%clk 0:02:47]} 7. Nxd4 {[%clk 0:02:57]}  Nc6 {[%clk 0:02:46]} 8. Nc2 {[%clk 0:02:52]}  d6 {[%clk 0:02:45]} 9. Nc3 {[%clk 0:02:51]}  a6 {[%clk 0:02:42]} 10. e4 {[%clk 0:02:51]}  Be6 {[%clk 0:02:35]} 11. Qe2 {[%clk 0:02:40]}  Rc8 {[%clk 0:02:34]} 12. h3 {[%clk 0:02:29]}  Qd7 {[%clk 0:02:22]} 13. Kh2 {[%clk 0:02:27]}  Ne5 {[%clk 0:02:13]} 14. b3 {[%clk 0:02:25]}  b5 {[%clk 0:02:12]} 15. f4 {[%clk 0:02:20]}  Nc6 {[%clk 0:02:08]} 16. cxb5 {[%clk 0:01:41]}  axb5 {[%clk 0:02:07]} 17. Bb2 {[%clk 0:01:37]}  b4 {[%clk 0:02:02]} 18. Na4 {[%clk 0:01:26]}  Qb7 {[%clk 0:01:48]} 19. Ne3 {[%clk 0:01:20]}  Bd7 {[%clk 0:01:41]} 20. Rac1 {[%clk 0:01:09]}  Qb8 {[%clk 0:01:29]} 21. Rfd1 {[%clk 0:01:08]}  Be8 {[%clk 0:01:19]} 22. Nc4 {[%clk 0:00:54]}  Qb5 {[%clk 0:01:12]} 23. Nab6 {[%clk 0:00:51]}  Rb8 {[%clk 0:01:07]} 24. Nd5 {[%clk 0:00:47]}  Nxd5 {[%clk 0:01:02]} 25. Rxd5 {[%clk 0:00:40]}  Qa6 {[%clk 0:00:57]} 26. Bxg7 {[%clk 0:00:39]}  Kxg7 {[%clk 0:00:56]} 27. e5 {[%clk 0:00:34]}  dxe5 {[%clk 0:00:42]} 28. fxe5 {[%clk 0:00:31]}  e6 {[%clk 0:00:42]} 29. Rd6 {[%clk 0:00:31]}  Ra8 {[%clk 0:00:40]} 30. Ne3 {[%clk 0:00:16]}  Qxe2 {[%clk 0:00:39]} 0-1


[Site "https://www.chess.com"]